bitfinex/quotes_ETHUSD_20260130
["timestamp","ask_amount","ask_price","bid_price","bid_amount"]
[1769785020502,10.09784583,2738.4,2736.6,0.002]
[1769785020810,10.09784583,2738.4,2736.9,0.91343618]
[1769785021293,10.09784583,2738.4,2736.6,0.00100399]
[1769785021294,10.86284583,2738.8,2737.1,0.2355703]
[1769785021478,10.09784583,2738.8,2737.1,0.2355703]
[1769785022174,10.09784583,2739.3,2737.1,0.3379703]
[1769785022381,11.19514605,2739.2,2737.1,0.3379703]
[1769785022577,10.09784583,2738.9,2737.1,0.002]
[1769785022763,10.09784583,2738.5,2737.1,0.002]
[1769785023478,10.09784583,2739.0,2737.1,0.002]
[1769785023680,10.09784583,2738.8,2737.1,0.002]
[1769785024001,10.09784583,2738.6,2737.1,0.6492]
[1769785024169,10.09784583,2738.6,2737.2,0.2335703]
[1769785024567,10.09784583,2739.1,2737.2,0.2335703]
[1769785024770,10.09784583,2738.5,2737.1,0.6492]
[1769785024980,10.09784583,2739.0,2737.1,0.002]
[1769785025218,10.09784583,2739.0,2737.2,0.01101564]
[1769785025516,10.09784583,2739.0,2737.1,0.002]
[1769785026810,10.28978576,2738.6,2737.1,0.002]
[1769785027485,10.28978576,2738.4,2737.1,0.002]
[1769785027684,10.3008014,2738.4,2737.1,0.002]
[1769785028089,10.28978576,2738.1,2737.1,0.002]
[1769785028299,0.01101564,2738.2,2737.1,0.002]
[1769785028300,10.28978576,2737.9,2737.1,0.002]
[1769785028604,11.40637998,2737.8,2736.6,0.00100399]
[1769785028823,11.40637998,2737.8,2734.7,10.51945072]
[1769785028824,10.28978576,2737.5,2734.7,10.51945072]
[1769785029096,10.28978576,2737.1,2735.0,0.01101564]
[1769785029285,10.28978576,2737.1,2734.7,10.51945072]
[1769785029286,11.31876434,2737.0,2735.3,1.01635346]
[1769785029490,11.31876434,2737.0,2735.3,0.1024]
[1769785029809,11.31876434,2737.0,2735.3,1.01637028]
[1769785030010,11.31876434,2737.0,2735.4,0.2335703]
[1769785030294,10.28978576,2737.0,2735.3,0.1024]
[1769785030524,10.28978576,2737.0,2735.2,1.01639041]
[1769785030816,10.28978576,2737.0,2735.3,1.14754067]
[1769785031017,10.28978576,2736.8,2734.8,0.91414042]
[1769785031206,10.28978576,2736.6,2734.7,0.91416657]
[1769785031408,10.28978576,2736.4,2734.2,0.003]
[1769785031644,10.28978576,2736.2,2734.2,0.003]
[1769785032223,10.28978576,2736.2,2734.5,0.91422112]
[1769785032399,10.28978576,2736.2,2734.6,0.1024]
[1769785032599,10.80382543,2736.2,2734.6,0.1024]
[1769785033099,10.80382543,2736.2,2735.5,0.002]
[1769785033299,10.28978576,2736.2,2735.5,0.002]
[1769785033725,10.28978576,2736.7,2735.5,0.002]
[1769785034320,11.05578576,2737.2,2735.5,0.002]
[1769785034632,10.28978576,2736.8,2735.5,0.002]
[1769785034920,0.01101564,2736.3,2735.3,0.002]
[1769785035223,0.01101564,2736.3,2734.3,0.91428098]
[1769785035224,10.28978576,2736.0,2734.3,0.91430697]
[1769785035410,11.31876434,2735.9,2734.2,0.005]
[1769785036305,1.02897858,2735.9,2734.2,0.005]
[1769785036500,10.28978576,2736.2,2734.2,0.005]
[1769785036701,10.3008014,2736.2,2734.2,0.005]
[1769785036919,10.28978576,2736.2,2734.2,0.005]
[1769785037120,11.31876434,2736.1,2734.2,0.005]
[1769785037428,11.31876434,2736.1,2732.7,10.51945072]
[1769785037429,10.28978576,2734.9,2732.7,10.51945072]
[1769785037729,10.28978576,2734.6,2732.4,10.51945072]
[1769785037893,10.28978576,2735.1,2733.0,0.01101564]
[1769785038090,0.51514123,2735.0,2733.6,0.01101564]
[1769785038353,0.51514123,2735.0,2733.2,0.01101564]
[1769785038495,10.28978576,2735.6,2733.9,0.01101564]
[1769785038699,1.67806875,2735.8,2734.3,0.01101564]
[1769785039008,1.67806875,2735.8,2734.4,0.01101564]
[1769785039201,1.67806875,2735.8,2734.2,0.01101564]
[1769785039402,1.67806875,2735.8,2733.8,0.01101564]
[1769785039403,11.96785451,2735.8,2733.8,0.01101564]
[1769785039727,11.96785451,2735.8,2734.0,0.01101564]
[1769785040042,11.96785451,2735.8,2734.2,0.01101564]
[1769785040235,1.67806875,2735.8,2734.2,0.92534557]
[1769785040398,11.96785451,2735.8,2734.2,0.01101564]
[1769785040600,10.28978576,2735.6,2733.6,0.92553495]
[1769785040894,1.16420288,2735.5,2734.3,0.01101564]
[1769785041117,1.352243,2735.7,2734.3,0.01101564]
[1769785041829,10.28978576,2736.9,2734.7,0.01101564]
[1769785042027,10.28978576,2736.9,2734.9,0.01101564]
[1769785042995,10.28978576,2736.9,2734.6,0.1024]
[1769785043196,10.28978576,2736.7,2734.7,1.24915067]
[1769785043428,10.28978576,2736.7,2734.7,1.23813503]
[1769785043643,10.28978576,2736.5,2734.7,1.23813503]
[1769785043871,10.28978576,2735.4,2733.3,0.01101564]
[1769785043993,6.3044433,2735.5,2732.1,10.51945072]
[1769785043994,10.28978576,2734.7,2732.1,10.51945072]
[1769785044197,10.28978576,2734.5,2732.4,0.01101564]
[1769785044442,11.52666434,2734.4,2732.2,0.19754323]
[1769785044593,11.52666434,2734.4,2732.2,0.01101564]
[1769785044793,11.52666434,2734.4,2732.1,0.91503327]
[1769785045000,10.28978576,2734.2,2732.0,0.01101564]
[1769785045308,10.28978576,2734.2,2731.6,4.4267416]
[1769785045309,10.28978576,2733.9,2731.6,0.01101564]
[1769785045522,11.31876434,2733.8,2731.8,0.01101564]
[1769785045947,1.02897858,2733.8,2731.9,0.01101564]
[1769785046246,10.28978576,2734.2,2733.2,0.002]
[1769785046743,10.81447993,2734.8,2733.2,0.002]
[1769785047524,10.92303264,2734.7,2732.7,0.01101564]
[1769785047842,1.09230326,2734.6,2732.7,0.92585799]
[1769785048047,1.09230326,2734.6,2732.9,0.01101564]
[1769785048250,10.92303264,2734.7,2732.9,0.01101564]
[1769785048415,0.63324688,2734.7,2733.1,0.01101564]
[1769785048619,0.63324688,2734.7,2733.3,0.01101564]
[1769785049019,10.28978576,2735.9,2733.7,0.01101564]
[1769785049269,11.31876434,2735.8,2733.9,0.01101564]
[1769785049561,0.33074148,2736.3,2734.5,0.01101564]
[1769785049712,0.33074148,2736.3,2734.2,0.91434423]
[1769785049913,0.33074148,2736.3,2734.2,0.92535987]
[1769785050132,0.33074148,2736.3,2734.4,0.01101564]
[1769785050368,10.62052724,2736.3,2733.6,0.1024]
[1769785050535,11.42853848,2736.2,2733.9,1.04253632]
[1769785050718,11.42853848,2736.2,2734.0,0.91440183]
[1769785051057,11.42853848,2736.2,2734.1,0.9143557]
[1769785051260,11.42853848,2736.2,2734.1,0.92537134]
[1769785051420,11.42853848,2736.2,2734.1,0.01101564]
[1769785051623,11.42853848,2736.2,2734.1,0.925378]
[1769785051624,1.175928,2736.1,2734.1,0.925378]
[1769785052035,1.175928,2736.1,2734.1,0.01101564]
[1769785052036,11.46571376,2736.1,2734.1,0.01101564]
[1769785052256,11.46571376,2736.1,2734.1,0.92538302]
[1769785053733,11.46571376,2736.1,2734.3,0.01101564]
[1769785054159,10.28978576,2736.1,2734.3,0.01101564]
[1769785054362,0.33074148,2736.3,2734.3,0.01101564]
[1769785054547,10.62052724,2736.3,2734.3,0.01101564]
[1769785055056,0.33074148,2736.3,2734.5,0.01101564]
[1769785055361,0.33074148,2736.3,2734.9,0.01101564]
[1769785055653,0.33074148,2736.3,2735.1,0.925059]
[1769785055842,10.28978576,2737.3,2735.5,0.01101564]
[1769785056550,10.28978576,2737.3,2735.6,14.5]
[1769785057456,10.30593745,2737.1,2735.6,14.5]
[1769785058655,10.30693745,2737.1,2735.6,14.5]
[1769785059682,0.001,2737.1,2735.6,15.41386967]
[1769785059982,0.001,2738.6,2736.1,0.01101564]
[1769785059983,10.30593745,2738.3,2736.1,0.01101564]
[1769785060263,10.30593745,2738.3,2736.4,0.01101564]
[1769785060564,10.30593745,2738.3,2736.5,14.5]
[1769785060853,10.30593745,2738.3,2736.6,0.01101564]
[1769785061026,1.03059375,2738.2,2736.7,1.45110156]
[1769785061228,1.03059375,2738.2,2736.4,0.01101564]
[1769785061229,11.3365312,2738.2,2736.4,0.01101564]
[1769785061421,11.3365312,2738.2,2736.5,14.5]
[1769785061822,11.3365312,2738.2,2736.5,15.4135634]
[1769785062329,11.3365312,2738.2,2736.5,14.5]
[1769785064225,11.3365312,2738.2,2736.5,15.4135728]
[1769785064422,1.13365312,2738.1,2736.6,1.54135728]
[1769785064645,0.001,2738.6,2736.6,1.55237292]
[1769785064929,10.30693745,2738.6,2736.6,1.54135728]
[1769785065325,10.30593745,2737.6,2735.7,1.90694716]
[1769785065537,10.30593745,2737.6,2735.7,0.01101564]
[1769785065753,0.001,2738.6,2736.0,0.01101564]
[1769785065754,10.30593745,2738.4,2736.0,0.01101564]
[1769785065955,10.30593745,2738.4,2736.2,0.01101564]
[1769785066159,10.30593745,2738.0,2735.9,0.01101564]
[1769785066357,2.42802,2737.5,2735.3,0.91395893]
[1769785066524,10.30593745,2737.4,2735.4,14.5]
[1769785068638,10.30593745,2737.4,2734.7,3.66768973]
[1769785068639,10.31695309,2736.8,2734.6,0.01101564]
[1769785068841,10.30593745,2736.8,2734.6,0.91418566]
[1769785069064,11.3365312,2736.7,2734.7,15.87259073]
[1769785069474,11.3365312,2736.7,2734.7,14.95841559]
[1769785069785,11.3365312,2736.7,2734.7,15.87258992]
[1769785069935,1.03059375,2736.7,2734.8,0.01101564]
[1769785070138,10.30593745,2737.3,2735.0,0.01101564]
[1769785070667,10.30593745,2737.3,2735.2,0.01101564]
[1769785071170,10.30593745,2737.3,2735.1,0.766]
[1769785071338,10.30593745,2737.3,2735.2,0.01101564]
[1769785071537,10.30593745,2737.4,2735.7,14.5]
[1769785071770,10.30593745,2737.2,2735.8,1.45110156]
[1769785072069,10.30693745,2737.2,2735.8,1.45110156]
[1769785072791,10.30693745,2737.2,2735.6,0.002]
[1769785072792,10.30593745,2737.0,2735.6,0.002]
[1769785073139,10.30593745,2736.8,2735.6,0.002]
[1769785075761,10.31695309,2736.6,2735.4,0.002]
[1769785075972,10.30593745,2736.3,2734.9,14.5]
[1769785076143,10.30593745,2736.1,2735.0,1.45]
[1769785076569,1.03169531,2736.2,2734.5,0.91622764]
[1769785076745,10.30593745,2736.6,2734.6,14.5]
[1769785077075,10.30593745,2736.4,2734.6,14.5]
[1769785077370,0.01101564,2736.5,2734.6,14.5]
[1769785077371,10.30593745,2736.2,2734.6,14.5]
[1769785077964,10.30593745,2736.0,2734.5,0.002]
[1769785078643,11.07193745,2736.5,2734.5,0.002]
[1769785078973,10.30593745,2736.3,2734.5,0.91622771]
[1769785079143,10.30593745,2736.3,2734.6,0.9142029]
[1769785079347,10.30593745,2736.3,2734.6,0.92521854]
[1769785079543,10.30593745,2736.3,2734.7,14.5]
[1769785080576,10.30593745,2736.3,2734.7,15.41414967]
[1769785080767,10.30593745,2736.3,2734.8,1.54141497]
[1769785080969,0.766,2736.5,2734.8,1.54141497]
[1769785081173,10.30593745,2736.8,2734.8,1.54141497]
[1769785081174,10.30593745,2736.8,2734.9,0.01101564]
[1769785081351,0.001,2737.2,2735.1,9.97270794]
[1769785081686,10.30593745,2737.1,2734.8,1.54141497]
[1769785081877,11.3366312,2737.0,2735.2,14.5]
[1769785082102,11.3366312,2737.0,2735.2,15.41399663]
[1769785082381,11.3366312,2737.0,2735.2,14.5]
[1769785082748,11.3366312,2737.0,2735.2,15.41400894]
[1769785083167,10.30593745,2737.0,2735.2,15.41400301]
[1769785083595,10.30593745,2737.0,2735.2,14.5]
[1769785083765,10.30593745,2737.0,2735.2,15.41400844]
[1769785084495,0.001,2737.2,2735.5,0.01101564]
[1769785084859,0.001,2737.2,2735.7,0.01101564]
[1769785085060,0.001,2737.2,2735.8,14.5]
[1769785085260,10.30693745,2737.2,2735.9,1.45110156]
[1769785085459,0.001,2737.2,2735.9,1.45110156]
[1769785085664,3.7650683,2738.5,2735.9,1.45110156]
[1769785085665,10.30593745,2738.3,2735.9,9.97270794]
[1769785085873,10.30593745,2738.1,2735.5,0.01101564]
[1769785086089,10.30593745,2738.1,2736.0,14.5]
[1769785086293,10.30593745,2738.1,2736.0,15.41373577]
[1769785086594,10.77386409,2737.7,2736.0,14.5]
[1769785086799,10.77386409,2737.1,2735.4,0.002]
[1769785087093,10.77386409,2736.9,2735.4,0.002]
[1769785087996,10.77386409,2737.5,2735.4,0.768]
[1769785088295,0.766,2737.9,2735.9,0.01101564]
[1769785088797,10.77386409,2738.1,2736.3,0.01101564]
[1769785089195,0.39671785,2738.5,2736.6,0.01101564]
[1769785089565,11.17058194,2738.5,2736.7,15.266]
[1769785090097,10.77386409,2738.5,2736.8,0.92449123]
[1769785090286,0.767,2738.6,2736.8,0.92449123]
[1769785090766,0.767,2738.6,2736.9,14.5]
[1769785091170,11.54086409,2738.6,2736.9,14.5]
[1769785093833,11.54086409,2738.6,2736.4,0.91359345]
[1769785093834,10.77386409,2738.2,2736.4,0.91359345]
[1769785094127,10.77386409,2738.2,2735.7,0.01101564]
[1769785094128,10.77386409,2738.2,2736.1,3.65479947]
[1769785094598,1.18444756,2738.5,2736.6,0.01101564]
[1769785094796,10.77386409,2738.5,2736.6,0.01101564]
[1769785094970,10.77386409,2738.5,2736.7,0.01101564]
[1769785095974,0.001,2738.6,2736.9,0.01101564]
[1769785096315,0.001,2738.6,2737.4,0.01101564]
[1769785096819,0.001,2738.6,2737.3,0.01101564]
[1769785097476,0.001,2738.0,2737.3,0.01101564]
[1769785098183,0.001,2738.0,2737.2,0.766]
[1769785098510,0.001,2738.0,2737.2,1.6793421]
[1769785098812,0.001,2738.0,2737.1,1.69037917]
[1769785098982,0.001,2738.0,2737.1,1.69036555]
[1769785099190,0.001,2738.0,2737.2,0.5343951]
[1769785099387,0.001,2738.0,2736.8,0.91345909]
[1769785099620,0.001,2738.0,2736.6,0.91351764]
[1769785099916,10.77486409,2738.0,2736.3,0.002]
[1769785100123,0.01101564,2737.9,2736.3,0.002]
[1769785100331,11.85245206,2737.8,2736.3,0.002]
[1769785101587,0.001,2738.0,2736.3,0.002]
[1769785101782,0.001,2738.0,2736.4,0.01101564]
[1769785102421,0.001,2738.0,2736.4,0.92459963]
[1769785102621,10.77486409,2738.0,2736.4,0.01101564]
[1769785102779,10.77486409,2738.0,2736.4,0.91360276]
[1769785103093,11.8523505,2738.0,2736.3,0.002]
[1769785103530,10.77386409,2737.6,2736.3,0.002]
[1769785104981,1.07848641,2738.0,2736.3,0.002]
[1769785105389,0.001,2738.0,2736.3,0.002]
[1769785106307,0.001,2738.0,2736.5,0.91357573]
[1769785110228,0.001,2738.0,2736.6,0.01101564]
[1769785110536,0.001,2737.8,2736.8,0.01101564]
[1769785110709,10.77486409,2738.6,2737.0,10.5172148]
[1769785110710,0.001,2738.6,2737.0,10.5172148]
[1769785111022,0.001,2738.6,2737.4,0.01101564]
[1769785111227,0.001,2738.6,2737.7,0.01101564]
[1769785111431,0.30361148,2738.7,2737.7,0.01101564]
[1769785111796,0.30361148,2738.7,2737.4,0.01101564]
[1769785112702,11.07747557,2738.7,2737.1,1.05172148]
[1769785113053,10.77386409,2738.5,2737.0,0.91338932]
[1769785113712,10.77386409,2738.5,2736.9,0.91342247]
[1769785113956,10.77386409,2738.5,2736.7,0.91347828]
[1769785114166,10.77386409,2738.5,2736.8,0.91347462]
[1769785114655,10.77386409,2738.5,2736.6,0.002]
[1769785114826,10.77386409,2738.3,2736.6,0.002]
[1769785115212,10.77386409,2738.3,2736.6,0.91553767]
[1769785115633,10.77386409,2738.3,2736.6,0.002]
[1769785115939,10.77386409,2738.3,2736.6,0.91553826]
[1769785116121,10.77386409,2738.3,2736.6,0.91552831]
[1769785116319,11.8512505,2738.3,2736.6,0.002]
[1769785116655,11.8512505,2738.3,2736.6,0.91553715]
[1769785116815,11.8512505,2738.3,2736.6,0.002]
[1769785117658,10.29367527,2737.9,2736.6,0.002]
[1769785118147,10.29367527,2737.5,2736.3,0.002]
[1769785118315,10.29367527,2737.3,2735.4,0.002]
[1769785118517,1.04148473,2737.4,2735.4,0.002]
[1769785118518,10.29367527,2736.9,2735.4,0.002]
[1769785123370,0.01101564,2736.5,2735.6,0.002]
[1769785123531,10.29367527,2736.4,2735.4,0.002]
[1769785123864,10.29367527,2736.2,2735.3,0.002]
[1769785124770,10.29367527,2736.2,2735.1,0.002]
[1769785124945,10.29367527,2736.2,2734.3,0.002]
[1769785125144,11.05967527,2736.2,2734.3,0.002]
[1769785125765,10.29367527,2736.2,2734.3,0.002]
[1769785125931,10.29367527,2736.2,2734.4,0.01101564]
[1769785126347,11.37106168,2736.2,2734.4,0.01101564]
[1769785126655,10.29367527,2736.9,2734.8,0.01101564]
[1769785126976,0.91312494,2737.9,2734.8,0.01101564]
[1769785126977,10.29367527,2737.9,2735.4,0.01101564]
[1769785127177,10.29367527,2737.9,2735.6,0.01101564]
[1769785127345,11.3230428,2737.8,2735.8,0.01101564]
[1769785127734,11.3230428,2737.8,2735.4,0.11341564]
[1769785127735,10.29367527,2737.6,2735.4,0.01101564]
[1769785129082,10.29367527,2737.6,2735.5,0.9139097]
[1769785129318,10.29367527,2737.2,2735.4,0.91394278]
[1769785130675,10.29367527,2737.2,2735.3,0.91395223]
[1769785130860,11.3230428,2737.1,2735.4,0.45699709]
[1769785131055,11.3230428,2737.1,2735.0,0.01101564]
[1769785131056,11.3230428,2737.1,2735.1,0.91404336]
[1769785131660,11.3230428,2737.1,2734.0,10.08233222]
[1769785131661,10.29367527,2736.8,2734.6,0.91418851]
[1769785131969,10.29367527,2736.5,2734.3,0.002]
[1769785132268,10.29367527,2736.1,2734.3,0.002]
[1769785132570,0.01101564,2736.3,2734.3,0.002]
[1769785132571,10.29367527,2735.9,2734.3,0.002]
[1769785133068,10.29367527,2735.5,2734.3,0.002]
[1769785133771,11.05967527,2735.5,2734.3,0.002]
[1769785134339,10.29367527,2735.3,2734.3,0.002]
[1769785135674,10.29367527,2735.3,2734.6,0.002]
[1769785135845,1.02936753,2735.2,2734.6,0.002]
[1769785136042,10.29367527,2735.3,2734.6,0.002]
[1769785136578,10.29367527,2735.3,2734.4,0.002]
[1769785137363,10.29367527,2735.1,2733.3,0.91662866]
[1769785137684,10.29367527,2735.1,2733.3,0.002]
[1769785137866,10.29367527,2734.9,2733.5,0.9145736]
[1769785138387,10.29367527,2734.9,2733.4,0.91458356]
[1769785138585,10.29367527,2734.9,2733.5,0.91457601]
[1769785139157,10.29367527,2734.9,2733.4,0.91459516]
[1769785139354,10.29367527,2734.9,2733.3,0.002]
[1769785140060,11.3230428,2734.9,2733.3,0.002]
[1769785141095,10.29367527,2734.7,2733.3,0.002]
[1769785142157,10.29367527,2734.2,2731.7,0.01101564]
[1769785142361,11.05967527,2734.2,2732.2,0.91501164]
[1769785142790,11.05967527,2734.2,2732.3,0.91495805]
[1769785142978,10.29367527,2734.0,2732.4,0.45749164]
[1769785143184,10.29367527,2734.0,2732.6,0.91485992]
[1769785143368,10.29367527,2734.5,2732.5,3.67065402]
[1769785143764,12.10105844,2734.9,2732.5,10.12963838]
[1769785143980,10.29367527,2734.7,2732.7,0.01101564]
[1769785144387,10.29367527,2734.7,2732.9,0.01101564]
[1769785144590,11.3230428,2734.9,2733.0,0.01101564]
[1769785144890,11.3230428,2734.9,2733.1,1.07882182]
[1769785145090,10.29367527,2735.7,2733.4,0.01101564]
[1769785145390,10.29367527,2735.5,2733.5,0.01101564]
[1769785145594,10.29367527,2735.5,2733.4,0.01101564]
[1769785145990,10.29367527,2735.5,2733.3,0.9146453]
[1769785146495,0.77801564,2735.7,2733.3,0.9146453]
[1769785146500,10.24884905,2735.3,2733.3,0.9146453]
[1769785146690,1.02488491,2735.2,2733.4,0.46943985]
[1769785146897,11.27373396,2735.2,2733.4,0.46943985]
[1769785147098,11.27373396,2735.2,2733.4,0.45842421]
[1769785147298,11.27373396,2735.2,2733.5,0.91457837]
[1769785147501,10.24884905,2735.2,2733.5,0.91457837]
[1769785147904,10.24884905,2735.2,2733.4,1.37302689]
[1769785148107,10.24884905,2735.2,2733.6,0.002]
[1769785149596,12.47914105,2735.0,2733.6,0.002]
[1769785149908,10.24884905,2735.0,2733.6,0.002]
[1769785150111,1.02488491,2734.9,2733.6,0.002]
[1769785150620,10.24884905,2734.8,2733.6,0.002]
[1769785151688,11.01584905,2734.8,2733.6,0.002]
[1769785152992,10.24884905,2734.6,2733.4,0.002]
[1769785153211,10.24884905,2734.4,2733.4,0.002]
[1769785153720,10.24884905,2734.4,2732.3,0.91698005]
[1769785153920,10.24884905,2734.4,2732.3,0.92799569]
[1769785154229,10.24884905,2734.4,2732.7,0.01101564]
[1769785154383,1.72927861,2734.5,2732.9,0.01101564]
[1769785154588,10.24884905,2734.8,2732.9,1.09192932]
[1769785154889,10.24884905,2734.8,2733.1,0.01101564]
[1769785155089,10.24884905,2735.3,2733.4,0.01101564]
[1769785155489,10.24884905,2735.3,2733.6,0.01101564]
[1769785155717,0.767,2735.9,2733.8,0.01101564]
[1769785155917,10.24884905,2735.8,2733.5,0.91457837]
[1769785156221,1.1015849,2735.7,2733.8,10.7990649]
[1769785156386,10.24884905,2736.1,2734.0,0.01101564]
[1769785157619,10.24884905,2736.1,2734.1,0.91437767]
[1769785158222,10.24884905,2735.9,2734.1,0.91437767]
[1769785158526,14.15885505,2736.2,2734.2,0.01101564]
[1769785158826,10.24884905,2736.1,2734.3,1.17143443]
[1769785158989,0.001,2736.3,2734.6,10.79996659]
[1769785159313,0.001,2736.3,2735.1,0.01101564]
[1769785159514,0.001,2736.3,2735.2,0.91400994]
[1769785159730,0.001,2736.3,2735.3,0.45811709]
[1769785160100,10.24984905,2736.3,2734.4,0.01101564]
[1769785160296,10.24984905,2736.3,2734.6,0.01101564]
[1769785160489,10.24984905,2736.3,2734.5,3.65697373]
[1769785160711,10.24984905,2736.3,2734.4,0.01101564]
[1769785160712,0.001,2735.7,2734.8,0.91412017]
[1769785161089,0.001,2735.7,2734.9,0.91410816]
[1769785161288,0.001,2735.7,2734.8,0.91412253]
[1769785161618,0.001,2735.7,2734.9,0.45708245]
[1769785161793,0.001,2735.7,2734.7,0.91415241]
[1769785162517,0.001,2735.7,2734.8,0.91413948]
[1769785162904,0.001,2735.7,2734.7,0.91415235]
[1769785163106,0.001,2735.7,2734.4,0.91426055]
[1769785163320,1.0259849,2735.7,2734.5,0.2085695]
[1769785163501,1.0259849,2735.7,2734.3,0.91430198]
[1769785163696,1.0259849,2735.7,2733.9,0.91444456]
[1769785164008,0.001,2735.7,2734.2,0.01101564]
[1769785165225,0.001,2735.7,2734.4,0.01101564]
[1769785165620,0.001,2735.7,2734.2,0.01101564]
[1769785165794,10.24984905,2735.7,2734.2,0.91432247]
[1769785165993,0.001,2735.7,2734.2,0.91432247]
[1769785166199,0.001,2735.7,2734.8,0.01101564]
[1769785168234,10.24984905,2735.7,2734.5,0.91424267]
[1769785168531,10.24984905,2735.7,2734.3,0.45717439]
[1769785168731,0.001,2735.7,2734.7,0.9141743]
[1769785168931,0.001,2735.7,2734.8,0.9141177]
[1769785169133,0.001,2735.7,2734.4,0.01101564]
[1769785169434,0.001,2735.7,2734.7,0.9141579]
[1769785169638,0.001,2735.7,2734.8,0.9141303]
[1769785169837,0.001,2735.7,2734.9,0.45707414]
[1769785170134,0.001,2735.7,2734.7,0.91417705]
[1769785170347,10.24984905,2735.7,2733.7,0.01101564]
[1769785170648,10.24984905,2735.7,2733.7,0.91448846]
[1769785170849,10.24984905,2735.7,2734.0,0.91438763]
[1769785171001,10.24984905,2735.7,2734.1,0.91437766]
[1769785171204,10.24884905,2735.5,2733.7,0.01101564]
[1769785171409,10.24984905,2735.7,2734.2,3.65734889]
[1769785171652,10.24984905,2735.7,2734.2,3.65733424]
[1769785171949,10.24984905,2735.7,2734.6,0.9142062]
[1769785172307,10.24984905,2735.7,2734.4,0.91427735]
[1769785172534,0.001,2735.7,2734.5,0.45824024]
[1769785172737,0.001,2735.7,2734.5,0.46925588]
[1769785173105,0.001,2735.5,2734.5,0.46925588]
[1769785173332,10.24984905,2735.5,2734.5,0.45824024]
[1769785173535,10.24984905,2735.5,2734.3,0.91429171]
[1769785174462,0.001,2735.5,2734.5,0.01101564]
[1769785174810,0.001,2735.5,2734.7,0.01101564]
[1769785175641,0.001,2735.5,2734.9,0.01101564]
[1769785175828,0.001,2736.3,2734.9,0.01101564]
[1769785176030,0.001,2736.3,2735.2,0.01101564]
[1769785176415,0.001,2736.3,2735.4,0.01101564]
[1769785177312,0.001,2736.3,2735.6,0.01101564]
[1769785177544,0.001,2736.3,2735.3,0.91397652]
[1769785177745,10.27846015,2736.3,2734.9,6.47]
[1769785177930,10.27746015,2736.1,2735.0,0.647]
[1769785178119,10.27746015,2736.1,2734.8,0.91414177]
[1769785178442,10.27746015,2736.1,2734.9,0.91410971]
[1769785178647,10.27746015,2736.1,2734.7,14.51101564]
[1769785178945,10.27746015,2736.1,2734.7,14.5]
[1769785179143,10.27746015,2736.1,2734.7,15.41417043]
[1769785179451,11.40809077,2736.1,2734.8,1.54141704]
[1769785180965,11.40809077,2736.1,2734.9,0.9141102]
[1769785181144,10.27746015,2736.1,2734.8,2.45555332]
[1769785183860,10.27746015,2736.1,2734.9,0.01101564]
[1769785184235,0.001,2736.3,2734.9,0.01101564]
[1769785184566,0.001,2736.1,2735.0,0.002]
[1769785184766,0.001,2736.1,2735.0,14.502]
[1769785185063,0.001,2736.1,2735.1,2.36531537]
[1769785185264,0.001,2736.1,2735.1,2.37633101]
[1769785185862,0.001,2736.1,2735.2,14.5]
[1769785186250,0.001,2736.1,2735.3,0.01101564]
[1769785186870,10.27846015,2736.1,2735.4,14.5]
[1769785187177,11.30530617,2736.0,2735.1,1.45130156]
[1769785187349,11.30530617,2736.0,2735.0,0.91606997]
[1769785187550,10.27746015,2736.0,2735.1,0.91404164]
[1769785187849,0.001,2736.1,2735.1,0.91404164]
[1769785188064,0.001,2736.1,2735.1,0.92505728]
[1769785188245,0.001,2736.1,2735.3,0.01101564]
[1769785188452,10.27846015,2736.1,2735.2,14.5]
[1769785188670,11.30640616,2736.1,2735.0,0.002]
[1769785190263,11.30640616,2736.1,2734.1,0.01101564]
[1769785190264,10.27746015,2735.9,2734.3,0.91431065]
[1769785190572,10.27746015,2735.9,2734.3,0.91430849]
[1769785190894,10.27746015,2735.9,2734.6,0.01101564]
[1769785191038,0.001,2736.1,2735.0,0.01101564]
[1769785191473,0.001,2736.1,2735.1,14.5]
[1769785191679,0.001,2736.1,2735.2,1.4621172]
[1769785192065,0.001,2736.1,2735.2,0.01101564]
[1769785192283,0.001,2736.3,2735.4,0.01101564]
[1769785192441,10.27746015,2736.8,2735.4,0.01101564]
[1769785193181,10.27746015,2736.8,2735.6,0.91387629]
[1769785193552,10.27746015,2736.8,2735.6,0.92489193]
[1769785193752,10.27746015,2736.8,2735.7,0.4580499]
[1769785193949,10.27746015,2737.3,2735.7,0.4580499]
[1769785194244,10.27746015,2738.0,2736.1,0.01101564]
[1769785194543,10.27746015,2738.0,2736.4,0.01101564]
[1769785195053,10.27746015,2738.0,2736.5,14.5]
[1769785195254,10.27746015,2737.8,2736.6,1.45110156]
[1769785195438,10.27746015,2737.8,2736.6,2.36463682]
[1769785195642,0.001,2738.1,2736.6,0.91353526]
[1769785195859,10.27846015,2738.1,2736.7,14.5]
[1769785196303,10.27846015,2738.1,2736.8,0.01101564]
[1769785196583,10.27846015,2738.1,2736.6,0.9245509]
[1769785196997,10.27846015,2738.1,2736.9,14.5]
[1769785197178,10.27846015,2738.1,2737.0,1.45]
[1769785197492,0.001,2737.9,2737.0,1.45]
[1769785198184,0.30361148,2738.7,2737.3,0.01101564]
[1769785198352,10.27746015,2739.2,2737.8,0.01101564]
[1769785198764,10.27746015,2739.2,2737.9,14.5]
[1769785198969,10.27746015,2739.2,2738.0,1.45110156]
[1769785199456,10.27746015,2739.2,2737.9,0.91310858]
[1769785199660,0.001,2740.6,2737.9,0.91310858]
[1769785199661,10.27746015,2740.2,2738.2,0.01101564]
[1769785200672,10.27746015,2740.2,2738.1,14.5]
[1769785200673,10.27746015,2740.0,2738.1,14.5]
[1769785201111,10.27746015,2739.8,2738.1,14.5]
[1769785201406,10.27746015,2739.4,2738.1,14.5]
[1769785201560,1.80621396,2739.7,2737.6,0.55475482]
[1769785201561,10.27746015,2739.2,2737.6,0.55475482]
[1769785202008,10.27746015,2739.2,2737.8,0.91312866]
[1769785202314,10.27746015,2739.6,2737.6,0.55475482]
[1769785202492,10.27746015,2739.2,2737.6,0.55475482]
[1769785202664,11.68452313,2739.1,2737.6,0.55475482]
[1769785203292,1.40706298,2739.1,2737.7,0.01101564]
[1769785203626,10.27746015,2739.6,2737.9,0.01101564]
[1769785203924,10.27746015,2739.6,2737.8,0.91314193]
[1769785204080,10.27746015,2740.1,2738.1,10.32697277]